fUSD/lending_fUSD_20241030
["ID","MTS","AMOUNT","RATE_DAILY","PERIOD"]
[341018079,1730267432543,-153.0,0.00035616,2]
[341018080,1730267432552,-153.0,0.00035616,2]
[341018081,1730267432561,-153.0,0.00035616,2]
[341018082,1730267432571,-153.0,0.00035616,2]
[341018083,1730267432580,-153.0,0.00035616,2]
[341018084,1730267432590,-153.0,0.00035616,2]
[341018085,1730267432599,-153.0,0.00035616,2]
[341018086,1730267432609,-153.0,0.00035616,2]
[341018087,1730267432619,-153.0,0.00035616,2]
[341018088,1730267432629,-153.0,0.00035616,2]
[341018089,1730267432639,-153.0,0.00035616,2]
[341018090,1730267432648,-153.0,0.00035616,2]
[341018091,1730267432658,-153.0,0.00035616,2]
[341018092,1730267432667,-153.0,0.00035616,2]
[341018093,1730267432677,-153.0,0.00035616,2]
[341018094,1730267432686,-153.0,0.00035616,2]
[341018095,1730267432695,-153.0,0.00035616,2]
[341018096,1730267432705,-153.0,0.00035616,2]
[341018097,1730267432715,-153.0,0.00035616,2]
[341018098,1730267432724,-153.0,0.00035616,2]
[341018099,1730267432734,-153.0,0.00035616,2]
[341018100,1730267432744,-153.0,0.00035616,2]
[341018101,1730267432754,-153.0,0.00035616,2]
[341018102,1730267432764,-153.0,0.00035616,2]
[341018103,1730267432777,-153.0,0.00035616,2]
[341018104,1730267432787,-2000.0,0.00035797,2]
[341018105,1730267432796,-200.0,0.00035797,2]
[341018106,1730267432805,-466.0,0.000358,2]
[341018107,1730267432816,-158.93,0.00035925,2]
[341018108,1730267432826,-200.0,0.00036,30]
[341018109,1730267432836,-8455.1681988,0.00036095,2]
[341018110,1730267435471,-810.95563597,0.00036095,2]
[341018111,1730267435483,-497.77118329,0.00036095,2]
[341018112,1730267435530,-2330.72529433,0.00036095,2]
[341018113,1730267435588,-687.63183088,0.00036095,2]
[341018114,1730267435699,-513.0,0.00036095,2]
[341018115,1730267435711,-9869.74785673,0.00036095,2]
[341018116,1730267435721,-200.0,0.00036155,2]
[341018117,1730267435730,-176.06,0.00036425,2]
[341018118,1730267435740,-1000.0,0.00036486,2]
[341018119,1730267435749,-2542.4505,0.00036486,2]
[341018120,1730267435758,-1199.2962,0.00036486,2]
[341018121,1730267435770,-409.2248,0.00036487,2]
[341018122,1730267435780,-274.699,0.00036487,2]
[341018123,1730267435790,-165.63801254,0.00036487,2]
[341018124,1730267435799,-313.05396093,0.00036487,2]
[341018125,1730267435808,-200.0,0.00036517,2]
[341018126,1730267435818,-162.01671,0.00036519,7]
[341018127,1730267435827,-151.0,0.00036519,7]
[341018128,1730267435835,-192.244306,0.00036519,7]
[341018129,1730267435845,-151.0,0.00036519,7]
[341018130,1730267435855,-151.0,0.00036519,7]
[341018131,1730267435864,-151.0,0.00036519,7]
[341018132,1730267435873,-883.838047,0.00036519,7]
[341018133,1730267435882,-883.838047,0.00036519,7]
[341018134,1730267435891,-313.05396084,0.00036563,2]
[341018135,1730267435900,-1916.07502702,0.00036586,2]
[341018136,1730267435909,-244.10392188,0.00036586,15]
[341018137,1730267435918,-151.44,0.00036586,7]
[341018138,1730267435927,-267.144068,0.00036586,7]
[341018139,1730267435937,-151.0,0.00036586,7]
[341018140,1730267435946,-151.0,0.00036586,7]
[341018141,1730267435956,-883.838047,0.00036586,7]
[341018142,1730267435966,-883.838047,0.00036586,7]
[341018143,1730267435975,-453.285535,0.00036586,7]
[341018144,1730267435984,-453.285535,0.00036586,7]
[341018145,1730267435993,-241.840354,0.00036586,7]
[341018146,1730267436002,-190.898223,0.00036586,14]
[341018147,1730267436011,-151.0,0.00036586,2]
[341018148,1730267436020,-151.0,0.00036586,7]
[341018149,1730267436029,-151.0,0.00036586,7]
[341018150,1730267436038,-151.0,0.00036586,7]
[341018151,1730267436047,-151.0,0.00036586,7]
[341018152,1730267436055,-84947.59609247,0.00036587,2]
[341018153,1730267436067,-12004.9012419,0.00036587,2]
[341018154,1730267436076,-210099.01161731,0.00036587,2]
[341018155,1730267436088,-14168.21408269,0.00036587,2]
[341018156,1730267436096,-2549.9407,0.00036587,2]
[341018157,1730267436106,-693.11,0.00036587,2]
[341018158,1730267436115,-151.0,0.00036587,7]
[341018159,1730267436124,-286.255822,0.00036587,7]
[341018160,1730267436133,-133.46743645,0.00036587,7]
[341018161,1730267436144,-24.13805555,0.00036587,7]
[341018162,1730267436153,-151.0,0.00036587,7]
[341018163,1730267436162,-89.86294445,0.00036587,7]
[341018170,1730267439804,-180.11713255,0.00036587,7]
[341018171,1730267439814,-156.361212,0.00036587,7]
[341018172,1730267439823,-222.136133,0.00036587,7]
[341018173,1730267439833,-151.0,0.00036587,7]
[341018174,1730267439843,-151.0,0.00036587,7]
[341018175,1730267439853,-207.593008,0.00036587,7]
[341018176,1730267439862,-151.0,0.00036587,7]
[341018177,1730267439871,-883.838047,0.00036587,7]
[341018178,1730267439880,-58.8903684,0.00036587,7]
[341018185,1730267442945,-220.48814938,0.00036587,7]
[341018191,1730267589212,159.09,0.00015342,2]
[341018193,1730268013651,4252.0,0.0001726,5]
[341018195,1730268203769,159.82,0.00015342,2]
[341018196,1730268352806,550.0,0.00015,2]
[341018197,1730268429150,-177.31,0.00027111,2]
[341018198,1730268429171,-679.29389798,0.00031058,2]
[341018199,1730268437263,-254.5243937,0.00031058,2]
[341018200,1730268437285,-2127.500364,0.00031158,2]
[341018201,1730268437310,-933.81829167,0.00031166,2]
[341018202,1730268437329,-933.81829167,0.00031273,2]
[341018203,1730268437349,-5857.87141519,0.00031832,2]
[341018204,1730268449133,-2337.36868481,0.00031832,2]
[341018205,1730268449153,-8474.61833742,0.00032193,2]
[341018206,1730268549114,-4536.94300449,0.000307,30]
[341018207,1730268553077,-5463.05699551,0.000307,30]
[341018208,1730268573086,-164.95576905,0.00032193,2]
[341018209,1730268573106,-168.52,0.00032193,2]
[341018210,1730268573125,-5629.87920895,0.00032193,2]
[341018211,1730268601394,300.0,0.00019725,2]
[341018212,1730268602146,420.0,0.00021484,2]
[341018220,1730268631706,-2052.09079105,0.00032193,2]
[341018221,1730268631721,-451.79579419,0.00032306,2]
[341018222,1730268631737,-596.71,0.00032406,2]
[341018223,1730268631752,-159.09,0.0003272,2]
[341018224,1730268631766,-2082.40580545,0.0003272,2]
[341018225,1730268631785,-581.63903796,0.0003272,2]
[341018226,1730268631925,-614.72573488,0.0003272,2]
[341018237,1730268632314,-1802.1000002,0.0003272,2]
[341018238,1730268632326,-648.72706165,0.0003272,2]
[341018239,1730268632335,-163.9860256,0.00032877,2]
[341018240,1730268632345,-192.37,0.00033252,2]
[341018241,1730268632356,-200.0,0.00033789,2]
[341018242,1730268632365,-150.0,0.00033937,7]
[341018243,1730268632374,-1680.55541441,0.00033999,2]
[341018244,1730268632395,-4940.35435108,0.00033999,2]
[341018246,1730268638026,-10076.35059342,0.00033999,2]
[341018249,1730268639789,-61.75715763,0.00033999,2]
[341018261,1730268641576,150.0,0.00017605,2]
[341018264,1730268642731,-7140.98248346,0.00033999,2]
[341018265,1730268642740,-152.0,0.00034044,3]
[341018266,1730268642750,-250.0,0.00034196,120]
[341018267,1730268642759,-381.73,0.00034276,2]
[341018268,1730268642768,-250.0,0.00034283,2]
[341018269,1730268642777,-155.61,0.00034489,120]
[341018270,1730268642785,-300.0,0.00034688,2]
[341018271,1730268642794,-2547.00749962,0.000347,30]
[341018272,1730268642816,-3256.50652326,0.000347,30]
[341018273,1730268642827,-557.18714108,0.000347,30]
[341018274,1730268642910,-13639.29883604,0.000347,30]
[341018275,1730268642920,-265.11271602,0.00034849,120]
[341018276,1730268642929,-1000.0,0.0003493,2]
[341018277,1730268642938,-161.78,0.00035002,2]
[341018278,1730268642947,-215.94,0.00035024,2]
[341018279,1730268642957,-1648.63228262,0.00035125,2]
[341018280,1730268642966,-2665.0,0.00035281,2]
[341018281,1730268642976,-500.0,0.00035516,2]
[341018282,1730268642985,-8759.41155116,0.00035587,7]
[341018283,1730268642997,-3468.54416482,0.00035587,7]
[341018284,1730268643008,-484.56846424,0.00035587,7]
[341018285,1730268643023,-305.20860273,0.00035587,7]
[341018286,1730268643035,-489.18296135,0.00035587,7]
[341018287,1730268643046,-362.76485203,0.00035587,7]
[341018288,1730268643057,-1668.02297108,0.00035587,7]
[341018289,1730268643068,-993.12736041,0.00035587,7]
[341018290,1730268643079,-11876.88035159,0.00035587,7]
[341018291,1730268643090,-29448.23259949,0.00035587,7]
[341018292,1730268643099,-57603.40642768,0.00035587,7]
[341018293,1730268643111,-403.44969976,0.00035587,7]
[341018294,1730268643122,-293.13610406,0.00035587,7]
[341018295,1730268643134,-4888.66482953,0.00035587,7]
[341018296,1730268643156,-8831.03326097,0.00035587,7]
[341018297,1730268643166,-114.91759955,0.00035615,42]
[341018298,1730268643178,-262.85140045,0.00035615,42]
[341018299,1730268643187,-109.38389105,0.00035616,2]
[341018300,1730268643198,-43.61610895,0.00035616,2]
[341018301,1730268643208,-153.0,0.00035616,2]
[341018302,1730268643217,-115.15256085,0.00035616,2]
[341018303,1730268645797,-37.84743915,0.00035616,2]
[341018304,1730268645807,-153.0,0.00035616,2]
[341018305,1730268645816,-153.0,0.00035616,2]
[341018306,1730268645825,-153.0,0.00035616,2]
[341018307,1730268645834,-153.0,0.00035616,2]
[341018308,1730268645844,-153.0,0.00035616,2]
[341018309,1730268645853,-153.0,0.00035616,2]
[341018310,1730268645863,-153.0,0.00035616,2]
[341018311,1730268645872,-153.0,0.00035616,2]
[341018312,1730268645881,-74.58175618,0.00035616,2]
[341018313,1730268645892,-78.41824382,0.00035616,2]
[341018314,1730268645901,-153.0,0.00035616,2]
[341018315,1730268645911,-153.0,0.00035616,2]
[341018316,1730268645920,-153.0,0.00035616,2]
[341018317,1730268645929,-153.0,0.00035616,2]
[341018318,1730268645938,-153.0,0.00035616,2]
[341018319,1730268645947,-153.0,0.00035616,2]
[341018320,1730268645956,-153.0,0.00035616,2]
[341018321,1730268645965,-153.0,0.00035616,2]
[341018322,1730268645975,-153.0,0.00035616,2]
[341018323,1730268645985,-144.58175618,0.00035616,2]
[341018324,1730268645996,-8.41824382,0.00035616,2]
[341018325,1730268646005,-153.0,0.00035616,2]
[341018326,1730268646014,-153.0,0.00035616,2]
[341018327,1730268646024,-153.0,0.00035616,2]
[341018328,1730268646034,-153.0,0.00035616,2]
[341018329,1730268646044,-153.0,0.00035616,2]
[341018330,1730268646053,-0.48317827,0.00035616,2]
[341018331,1730268646113,-152.51682173,0.00035616,2]
[341018332,1730268646122,-153.0,0.00035616,2]
[341018333,1730268646132,-153.0,0.00035616,2]
[341018334,1730268646264,-153.0,0.00035616,2]
[341018335,1730268646283,-165.54,0.00035631,2]
[341018336,1730268646293,-300.0,0.000363,13]
[341018337,1730268646302,-124.27506976,0.00036386,2]
[341018338,1730268744047,151.28882876,0.00017605,2]
[341018340,1730268792329,160.14,0.00015342,2]
[341018341,1730268902586,300.0,0.00019725,2]
[341018343,1730269310755,157.98,0.00015342,2]
[341018348,1730269507845,49842.02,0.00016,2]
[341018349,1730269507869,97002.03936099,0.00016,2]
[341018350,1730269529362,18570.82000001,0.000101,2]
[341018351,1730269554428,885.83575551,0.000159,2]
[341018352,1730269569914,2331.41942249,0.000199,3]
[341018353,1730269631634,-200.0,0.00023,2]
[341018354,1730269631659,-441.89291091,0.00024825,2]
[341018355,1730269646192,-187.4645004,0.00022,2]
[341018356,1730269672386,-4829.06197424,0.00022,2]
[341018357,1730269672409,-1152.53511053,0.000225,2]
[341018358,1730269672432,-9016.97782026,0.0002495,2]
[341018359,1730269672455,-909.35063967,0.00025,2]
[341018360,1730269672478,-3725.7148044,0.00025,2]
[341018361,1730269672502,-159.46,0.00026435,2]
[341018362,1730269672526,-206.8996509,0.0002702,30]
[341018363,1730269676037,-4454.806001,0.00024825,2]
[341018364,1730269676060,-723.52842586,0.0002702,30]
[341018365,1730269676084,-245.01138264,0.00027693,2]
[341018366,1730269676107,-177.06,0.00027793,2]
[341018367,1730269676130,-909.0,0.000286,2]
[341018368,1730269676288,-200.0,0.00029022,2]
[341018369,1730269676311,-692.57575,0.0003,2]
[341018370,1730269676333,-692.57575,0.00030073,2]
[341018371,1730269676357,-245.01138263,0.00031021,2]
[341018372,1730269676380,-2024.43,0.00032802,2]
[341018373,1730269676404,-712.48,0.00032879,2]
[341018374,1730269676428,-216.88,0.00032961,2]
[341018375,1730269676450,-150.99,0.00033,2]
[341018376,1730269676473,-175.0,0.00033,2]
[341018377,1730269676494,-8380.65130787,0.00033525,2]
[341018378,1730269683909,35144.22230717,0.00015,2]
[341018379,1730269684077,-494.06745387,0.00022,5]
[341018380,1730269684101,-7401.7586817,0.00033525,2]
[341018381,1730269684126,-12104.17386443,0.00034258,2]
[341018382,1730269695159,-202.8635,0.0003,2]
[341018383,1730269695185,-202.8635,0.00030128,2]
[341018384,1730269695208,-600.68,0.00034237,2]
[341018385,1730269695232,-11795.82613557,0.00034258,2]
[341018386,1730269695254,-2104.7,0.00034309,2]
[341018387,1730269695277,-245.01138263,0.00034348,2]
[341018388,1730269695299,-150.0,0.00034448,7]
[341018389,1730269695321,-233.87,0.00034466,2]
[341018390,1730269695342,-200.0,0.00034596,2]
[341018391,1730269695365,-192.37,0.00034604,2]
[341018392,1730269695387,-4071.8154818,0.00034617,2]
[341018393,1730269695781,-3934.6845182,0.00034617,2]
[341018394,1730269695803,-330.13,0.00034693,2]
[341018395,1730269695825,-177.06,0.00034741,2]
[341018396,1730269695847,-250.0,0.00034766,120]
[341018397,1730269695871,-745.5603,0.00034784,7]
[341018398,1730269695893,-166.57,0.00035052,2]
[341018399,1730269695914,-250.0,0.0003509,2]
[341018400,1730269695937,-302.215,0.00035106,41]
[341018401,1730269695960,-1000.0,0.00035106,2]
[341018402,1730269695982,-712.48,0.00035143,2]
[341018403,1730269696003,-150.0,0.00035342,2]
[341018404,1730269696026,-207.42,0.00035567,2]
[341018405,1730269696049,-6423.96488623,0.00035587,7]
[341018406,1730269696070,-582.02578735,0.00035587,7]
[341018407,1730269696092,-586.13599845,0.00035587,7]
[341018408,1730269696117,-1939.10064179,0.00035587,7]
[341018409,1730269696141,-157.98,0.00035616,2]
[341018410,1730269696164,-2084.67286798,0.000359,2]
[341018411,1730269697185,-20000.0,0.000359,2]
[341018412,1730269698475,-20000.0,0.000359,2]
[341018413,1730269700857,200.0,0.0001634,2]
[341018414,1730269701122,-453.0636715,0.0002425,2]
[341018415,1730269701144,-19546.9363285,0.000359,2]
[341018416,1730269706360,1212.22328137,0.00012,30]
[341018417,1730269718034,-13642.84640352,0.000359,2]
[341018418,1730269718058,-321.97712185,0.000359,2]
[341018419,1730269718081,-369.7740686,0.000359,2]
[341018420,1730269718104,-500.0,0.00035973,2]
[341018421,1730269718127,-201.73945678,0.00035973,2]
[341018422,1730269718152,-194.93,0.0003599,10]
[341018423,1730269718175,-748.08,0.0003599,3]
[341018424,1730269718197,-150.15881482,0.00035999,15]
[341018425,1730269718222,-1651.1361733,0.00036,2]
[341018426,1730269718247,-12219.35796113,0.00036,2]
[341018427,1730269718517,-30000.0,0.00036,2]
[341018428,1730269720900,-30000.0,0.00036,2]
[341018436,1730269725361,5389.0,0.00015,2]
[341018437,1730269726241,495.05998438,0.00015,2]
[341018438,1730269728491,252.89279286,0.0002,30]
[341018439,1730269738712,-266.00310284,0.0002301,2]
[341018440,1730269738735,-564.71803953,0.0002322,2]
[341018441,1730269738757,-250.0,0.00035619,120]
[341018442,1730269738783,-15475.09176012,0.00036,2]
[341018443,1730269738806,-13444.18709751,0.00036,2]
[341018444,1730269744351,-12900.0,0.00036,2]
[341018445,1730269801927,300.0,0.00019725,2]
[341018451,1730269831858,-641.23,0.00033661,2]
[341018452,1730269831868,-4139.79268136,0.000358,2]
[341018453,1730269831880,-835.85683877,0.000358,2]
[341018455,1730269831891,-1783.94217987,0.000358,2]
[341018457,1730269831902,-1672.55407971,0.000359,15]
[341018459,1730269831911,-641.23,0.00035925,2]
[341018461,1730269831921,-218.3482257,0.00035935,2]
[341018463,1730269831930,-20576.25894565,0.00036,2]
[341018465,1730269831973,-14802.22669074,0.00036,2]
[341018466,1730269831985,-2988.54533529,0.00036,2]
[341018467,1730269832064,-21963.20071343,0.00036,2]
[341018468,1730269832082,-437.20381498,0.00036,2]
[341018469,1730269832170,-803.38,0.00036,2]
[341018470,1730269832258,-2167.0,0.00036,2]
[341018471,1730269832270,-1211.39873941,0.00036,2]
[341018472,1730269832901,-26.06605514,0.00036,2]
[341018473,1730269838030,-155.80560653,0.000359,2]
[341018474,1730269838040,-57883.39439347,0.00036,2]
[341018475,1730269838052,-5047.09914872,0.00036,2]
[341018476,1730269838192,-68187.23413745,0.00036,2]
[341018477,1730269838335,-10417.54085102,0.00036,2]
[341018639,1730269840030,-801.0,0.00036,2]
[341018641,1730269840043,-2266.87050648,0.00036,2]
[341018656,1730269840179,-412.24767795,0.00036,2]
[341018659,1730269840191,-2546.34,0.00036,2]
[341018668,1730269840266,-9566.65167258,0.00036,2]
[341018670,1730269840278,-616.775001,0.00036,2]
[341018672,1730269840289,-725.55,0.00036,2]
[341018951,1730269842970,-477.34923512,0.00036,2]
[341018953,1730269842982,-4308.47777166,0.00036,2]
[341018976,1730269843191,-105385.0022124,0.00036,2]
[341018978,1730269843200,-151.0,0.00036,7]
[341018980,1730269843209,-151.0,0.00036,7]
[341018982,1730269843218,-693.0017876,0.00036,2]
[341019003,1730269843415,-6147.78468984,0.00036,2]
[341019007,1730269843445,-164.47288302,0.00036,2]
[341019233,1730269846069,-670.69273619,0.00036,2]
[341019234,1730269847123,-213880.89750152,0.00036,2]
[341019235,1730269847133,-151.0,0.00036,7]
[341019236,1730269847142,-151.0,0.00036,7]
[341019237,1730269847152,-407.956981,0.00036,7]
[341019238,1730269847161,-407.956981,0.00036,7]
[341019239,1730269847171,-407.956981,0.00036,7]
[341019240,1730269847180,-407.956981,0.00036,7]
[341019241,1730269847189,-151.0,0.00036,2]
[341019242,1730269847199,-151.0,0.00036,2]
[341019243,1730269847209,-281.35616044,0.00036,2]
[341019244,1730269847218,-182.4,0.0003603,2]
[341019245,1730269847228,-3337.78100748,0.0003603,2]
[341019246,1730269847237,-1672.55407966,0.00036067,15]
[341019247,1730269847249,-321.97712179,0.00036221,2]
[341019248,1730269847259,-1672.55407966,0.00036233,15]
[341019249,1730269847269,-3288.0,0.00036264,2]
[341019250,1730269847278,-300.0,0.000363,13]
[341019251,1730269847287,-321.97712179,0.00036329,2]
[341019252,1730269847297,-150.0,0.0003633,2]
[341019253,1730269847306,-150.0,0.00036379,2]
[341019254,1730269847316,-150.0,0.00036384,2]
[341019255,1730269847327,-195.71774672,0.00036386,2]
[341019256,1730269847337,-600.0,0.000364,13]
[341019257,1730269847346,-1672.55407966,0.000364,15]
[341019258,1730269847355,-321.97712179,0.00036436,2]
[341019259,1730269847364,-150.0,0.00036459,2]
[341019260,1730269847373,-150.0,0.00036497,2]
[341019261,1730269847383,-397.0,0.000365,22]
[341019262,1730269847392,-12598.89908863,0.000365,2]
[341019263,1730269847401,-1000.0,0.000365,13]
[341019264,1730269847411,-261.08931363,0.00036533,2]
[341019265,1730269847421,-321.97712179,0.00036543,2]
[341019266,1730269847430,-212.29,0.00036554,2]
[341019267,1730269847439,-1672.55407966,0.00036567,15]
[341019268,1730269847448,-150.01,0.00036586,2]
[341019269,1730269847457,-3408.1894696,0.00036586,2]
[341019270,1730269847466,-500.0,0.00036586,2]
[341019271,1730269847475,-2000.0,0.00036587,2]
[341019272,1730269847484,-200.0,0.00036587,2]
[341019273,1730269847495,-500.0,0.00036587,2]
[341019274,1730269847504,-500.0,0.00036587,2]
[341019275,1730269847513,-1300.0,0.000366,13]
[341019276,1730269847522,-9190.2386147,0.00036625,2]
[341019277,1730269847531,-321.97712179,0.0003665,2]
[341019278,1730269847540,-1302.09831988,0.00036686,30]
[341019279,1730269847550,-1302.09831989,0.00036686,30]
[341019280,1730269847559,-54612.38,0.00036686,7]
[341019281,1730269847568,-781.64,0.00036686,7]
[341019282,1730269847578,-579.0,0.00036686,7]
[341019283,1730269847587,-3266.35,0.00036686,7]
[341019284,1730269847595,-579.0,0.00036686,7]
[341019285,1730269847604,-1700.0,0.000367,13]
[341019286,1730269847613,-1000.0,0.00036712,2]
[341019287,1730269847623,-151.0,0.00036712,7]
[341019288,1730269847632,-151.0,0.00036712,2]
[341019289,1730269847641,-1672.55407966,0.00036733,15]
[341019290,1730269847650,-321.97712179,0.00036757,2]
[341019291,1730269847659,-881.1839,0.00036786,2]
[341019292,1730269847668,-1838.2354,0.00036786,2]
[341019293,1730269847677,-151.0,0.000368,7]
[341019294,1730269847687,-300.0,0.000368,13]
[341019295,1730269847695,-321.97712179,0.00036864,2]
[341019296,1730269847705,-1403.4657473,0.00036886,2]
[341019297,1730269847714,-74654.95189117,0.00036886,2]
[341019298,1730269847767,-115.26029027,0.00036886,2]
[341019299,1730269973151,160.21,0.00015342,2]
[341019302,1730270155188,550.0,0.00015,2]
[341019304,1730270557222,159.09,0.00015342,2]
[341019305,1730270560024,163.4095,0.00019342,2]
[341019306,1730270793645,500.0,0.0002,10]
[341019307,1730270808444,500.0,0.0002,10]
[341019308,1730270818089,-177.06,0.00027971,2]
[341019309,1730270818224,-181.71009487,0.000287,2]
[341019310,1730270836121,-116.28990513,0.000287,2]
[341019311,1730270836148,-163.4095,0.00029736,2]
[341019312,1730270836169,-277.951,0.0003,2]
[341019313,1730270836192,-277.951,0.0003,2]
[341019314,1730270836217,-160.21,0.00030548,2]
[341019315,1730270836239,-152.0,0.00032063,3]
[341019316,1730270836261,-1464.141373,0.00032525,2]
[341019317,1730270836282,-216.88,0.00032689,2]
[341019318,1730270836307,-684.34,0.00033838,2]
[341019319,1730270836326,-250.0,0.0003426,2]
[341019320,1730270836346,-4369.55999389,0.00034261,2]
[341019321,1730270849085,-1091.30736994,0.00034261,2]
[341019322,1730270865989,202.0,0.000165,2]
[341019323,1730270950070,-1000.0,0.0003,120]
[341019324,1730270950093,-748.67,0.0003,120]
[341019325,1730270960009,360.481786,0.000299,2]
[341019326,1730270964135,-530.23648635,0.000299,2]
[341019327,1730271010299,-650.12,0.0003346,2]
[341019328,1730271010323,-11337.34263617,0.00034261,2]
[341019329,1730271010344,-668.5,0.00034312,120]
[341019330,1730271010367,-250.0,0.00035048,120]
[341019331,1730271010391,-304.32,0.00035233,2]
[341019332,1730271010414,-8136.24594269,0.00035272,2]
[341019333,1730271010439,-150.0,0.00035272,7]
[341019334,1730271010463,-241.772,0.00035547,42]
[341019335,1730271010486,-191.0,0.00035586,2]
[341019336,1730271010509,-25147.2788915,0.00035587,7]
[341019337,1730271010532,-1138.0,0.00035638,2]
[341019338,1730271010557,-163.52,0.00035666,120]
[341019339,1730271010579,-650.12,0.00035724,2]
[341019340,1730271010601,-170.97,0.00035741,120]
[341019341,1730271010624,-165.93,0.00035871,2]
[341019342,1730271010646,-594.6251,0.000359,2]
[341019343,1730271010671,-233.49967687,0.00035998,10]
[341019344,1730271010692,-500.0,0.00035999,5]
[341019345,1730271010718,-500.0,0.00035999,5]
[341019346,1730271010739,-3506.81,0.00035999,5]
[341019347,1730271010759,-500.0,0.00035999,5]
[341019348,1730271010780,-500.0,0.00035999,5]
[341019349,1730271010800,-500.0,0.00035999,5]
[341019350,1730271010821,-4460.88,0.00035999,5]
[341019351,1730271010841,-537.97,0.00035999,5]
[341019352,1730271010861,-500.0,0.00035999,5]
[341019353,1730271010881,-500.0,0.00035999,5]
[341019354,1730271010907,-500.0,0.00035999,5]
[341019355,1730271010932,-500.0,0.00035999,5]
[341019356,1730271010953,-500.0,0.00035999,5]
[341019357,1730271010974,-511.26346823,0.00035999,5]
[341019358,1730271010998,-500.0,0.00035999,5]
[341019359,1730271011018,-500.0,0.00035999,5]
[341019360,1730271011046,-500.0,0.00035999,5]
[341019361,1730271011068,-500.0,0.00035999,5]
[341019362,1730271011088,-500.0,0.00035999,5]
[341019363,1730271011110,-500.0,0.00035999,5]
[341019364,1730271011132,-648.4,0.00035999,5]
[341019365,1730271011152,-500.84934642,0.00035999,5]
[341019366,1730271011175,-300.0,0.00035999,5]
[341019367,1730271011199,-500.0,0.00035999,5]
[341019368,1730271011224,-500.0,0.00035999,5]
[341019369,1730271011248,-586.68,0.00035999,5]
[341019370,1730271011269,-500.0,0.00035999,5]
[341019371,1730271011289,-500.0,0.00035999,5]
[341019372,1730271011314,-500.0,0.00035999,5]
[341019373,1730271011337,-500.0,0.00035999,5]
[341019374,1730271011360,-500.0,0.00035999,5]
[341019375,1730271011382,-736.63,0.00035999,5]
[341019376,1730271011404,-500.0,0.00035999,5]
[341019377,1730271011426,-151.08098802,0.00035999,5]
[341019378,1730271011448,-500.0,0.00035999,5]
[341019379,1730271011469,-500.0,0.00035999,5]
[341019380,1730271011490,-500.0,0.00035999,5]
[341019381,1730271011511,-500.0,0.00035999,5]
[341019382,1730271011532,-627.81,0.00035999,5]
[341019383,1730271011673,-500.0,0.00035999,5]
[341019384,1730271011697,-500.0,0.00035999,5]
[341019385,1730271011721,-500.0,0.00035999,5]
[341019386,1730271011744,-500.0,0.00035999,5]
[341019387,1730271011768,-619.46,0.00035999,5]
[341019388,1730271011792,-500.0,0.00035999,5]
[341019389,1730271011817,-522.22275172,0.00035999,5]
[341019390,1730271011841,-500.0,0.00035999,5]
[341019391,1730271011863,-500.0,0.00035999,5]
[341019392,1730271011886,-500.0,0.00035999,5]
[341019393,1730271011909,-500.0,0.00035999,5]
[341019394,1730271011930,-500.0,0.00035999,5]
[341019395,1730271011952,-513.96995645,0.00035999,5]
[341019396,1730271011973,-500.0,0.00035999,5]
[341019397,1730271011994,-596.8715251,0.00035999,5]